Workbook

Sheet 汇总
A1: 工程项目总价（汇总）表
A2: 工程名称：轮台县2023年塔里木河干流生态综合治理项目
A3: 合同编号：
A4: 序号 | B4: 工程项目名称 | C4: 金额(元) | D4: 备注
A5: 一 | B5: 建筑工程
A6: 二 | B6: 机电设备及安装工程
A7: 三 | B7: 金属结构设备及安装工程
A8: 四 | B8: 安全监测设备采购及安装工程
A9: 五 | B9: 临时工程（总价承包项目）
A10: 六 | B10: 措施项目
A11: （1） | B11: 水土保持措施费
A12: （2） | B12: 环境保护措施费
A13: （3） | B13: 安全、文明生产措施费+维稳措施费 | D13: 按现行文件规定执行
A14: 七 | B14: 其他项目 | C14: =SUM(C15:C18) -> 30000
A15: （1） | B15: 备用金 | C15: =其他!C6 -> 20000
A16: （2） | B16: 防疫费 | C16: =其他!C7 -> 10000
A19: 八 | B19: 合计

Sheet 建.
A1: 建筑工程分类分项工程量清单计价表
A2: =汇总!A2 -> 工程名称：轮台县2023年塔里木河干流生态综合治理项目
A3: =[29]汇总!A3 -> 合同编号：
A4: 序号 | B4: 工程或费用名称 | C4: 单位 | D4: 数量 | E4: 单价 | F4: 合价 | G4: 备注
B5: 建筑工程
A6: 一、 | B6: 人工造林 | C6: 亩 | D6: 4500
A7: 1.1 | B7: 人工造林
A8: 1.1.1 | B8: 整地（含人工费等费用） | C8: 亩 | D8: 4500
A9: 1.1.2 | B9: 栽植（含人工等费用） | C9: 亩 | D9: 4500
A10: 1.1.3 | B10: 栽后二次浇灌（含人工等费用） | C10: 亩 | D10: 4500
A11: 1.2 | B11: 苗木
A12: 1.2.1 | B12: 白蜡，地径≥3CM，苗高≥300CM | C12: 株 | D12: 9100
A13: 1.2.2 | B13: 杜梨，地径≥0.9CM，苗高≥130CM | C13: 株 | D13: 4500
A14: 1.2.3 | B14: 海棠，地径≥1.2CM，苗高≥130CM | C14: 株 | D14: 2700
A15: 1.2.4 | B15: 红叶李，苗高≥70CM，胸径≥1.5CM，有15个以上饱满芽 | C15: 株 | D15: 4550
A16: 1.2.5 | B16: 胡杨，地径≥0.8CM，苗高≥130CM | C16: 株 | D16: 1000
A17: 1.2.6 | B17: 泡桐，地径≥1.4CM，苗高≥130CM | C17: 株 | D17: 400
A18: 1.2.7 | B18: 青杨，地径≥1.6CM，苗高≥240CM | C18: 株 | D18: 329600
A19: 1.2.8 | B19: 桑树，地径≥0.9CM，苗高≥130CM | C19: 株 | D19: 1100
A20: 1.2.9 | B20: 杏树，苗高≥130CM，胸径≥1.5CM，主干上 40~60cm 茎段内有 8 个以上饱满芽 | C20: 株 | D20: 160000
A21: 1.2.10 | B21: 长枝榆，地径≥3CM，苗高≥240CM | C21: 株 | D21: 1800
A22: 1.3 | B22: 抚育管理
A23: 1.3.1 | B23: 施有机肥 | C23: =C10 -> 亩 | D23: 4500
A24: 1.3.2 | B24: 病虫害防治 | C24: =C23 -> 亩 | D24: 4500
A25: 1.3.3 | B25: 抚育（含人工费、修枝、除草、灌溉等费用） | C25: =C24 -> 亩 | D25: 4500
A26: 1.3.4 | B26: 管护（含人工费等费用） | C26: =C24 -> 亩 | D26: 4500
A27: 二、 | B27: 退化林修复项目
A28: 2.1 | B28: 退化林修复项目
A29: 2.1.1 | B29: 病腐木采伐清 运 | C29: 亩 | D29: 200
A30: 2.1.2 | B30: 整地（人工费等费用，含树蔸清除） | C30: 亩 | D30: 200
A31: 2.1.3 | B31: 栽植（含人工费等费用） | C31: 亩 | D31: 200
A32: 2.1.4 | B32: 栽后二次浇灌（含人工等费用） | C32: 亩 | D32: 200
A33: 2.2 | B33: 苗木 | C33: 株
A34: 2.2.1 | B34: 白蜡，地径≥3CM，苗高≥300CM | C34: 株 | D34: 2790
A35: 2.2.2 | B35: 柳树，地径≥1.7CM，苗高≥230CM | C35: 株 | D35: 10000
A36: 2.2.3 | B36: 沙枣，地径≥1.4CM，苗高≥120CM | C36: 株 | D36: 7110
A37: 2.2.4 | B37: 胡杨，地径≥0.8CM，苗高≥100CM | C37: 株 | D37: 2790
A38: 2.2.5 | B38: 青杨，地径≥1.6CM，苗高≥240CM | C38: 株 | D38: 73640
A39: 2.2.6 | B39: 桑树，地径≥0.8CM，苗高≥130CM | C39: 株 | D39: 10720
A40: 2.2.7 | B40: 长枝榆，地径≥3CM，苗高≥240CM | C40: 株 | D40: 2790
A41: 2.3 | B41: 抚育
A42: 2.3.1 | B42: 施有机肥 | C42: =C31 -> 亩 | D42: 2000
A43: 2.3.2 | B43: 病虫害防治 | C43: =C42 -> 亩 | D43: 2000
A44: 2.3.3 | B44: 抚育（含人工费、修枝、除草、灌溉等费用） | C44: 亩 | D44: 2000
A45: 2.3.4 | B45: 管护（含人工费等费用） | C45: 亩 | D45: 2000
A46: 三、 | B46: 封山育林
A47: 3.1 | B47: 封山育林
A48: 3.1.1 | B48: 围栏（长度含野生动物通道 11 处）。围栏质量标准按照《中华人民共和国机械行业标准》编结网围栏技术条件以及《新疆草原建设项目围栏建设标准》（NY/T 635-2002）执行。 （1）刺丝采用国标，主丝用 12号铁丝，刺用 14号铁丝。（2） 挂线桩材料规格: ∠40x40 等边角铁，高度按设计。立柱间距:挂线柱间距 5m，水平拉刺丝5道，刺丝间距 30cm，对角线拉刺丝2 道。按设计要求增设加强桩。 | C48: m | D48: 33500
A49: 3.1.2 | B49: 封禁牌 ，采用金属结构，采用金属结构，4.7 m×3m，支架高 2.7m，牌面3m×2m；角钢规格为 L50×50×4mm，牌面铁皮厚 3mm；角钢下端各埋设 1 个500×500×500mmC20 混凝土墩，用Φ8 人字形钢筋焊接于角钢，锚入混凝土墩内；牌面文字用汉、维两种文字标明工程 项目名称、四至范围、封育面积、封育年限、封育方式、封育措施、项目责任人、监督电话、项目区规划图等。 | C49: 块 | D49: 5
A50: 3.1.3 | B50: 标志牌 ，采用金属结构，2.4m×1.2m，支架高 1.3m，牌面 1.1m×1.2m。角钢规格：L50×50×4mm，牌面铁皮厚 3mm，标志牌内容除表明牌所在位置为边界外，还应附相关规定及规章制度，起到提醒、警示作用等. | C50: 块 | D50: 10
A51: 3.2 | B51: 引洪渠道 （引洪渠上口宽 3 米、下口宽 1.2 米，深 0.8 米） | C51: m³ | D51: 70610.4 | G51: 引洪渠道长42.03KM
A52: 3.3 | B52: 播种
A53: 3.3.1 | B53: 骆驼刺（含种子、人工等费用） | C53: KG | D53: 1000
A54: 3.3.2 | B54: 白刺（含种子、人工等费用） | C54: KG | D54: 1000
A55: 3.3.3 | B55: 芦苇（含种子、人工等费用） | C55: KG | D55: 500
A56: 3.3.4 | B56: 柽柳种子（含种子、人工等费用） | C56: KG | D56: 1200
A57: 3.3.5 | B57: 梭梭种子（含种子、人工等费用） | C57: KG | D57: 1500
A58: 3.3.6 | B58: 盐穗木（含种子、人工等费用） | C58: KG | D58: 1500
A59: 3.3.7 | B59: 整地开沟（沟深 10-40cm），根据地势高低情况合理开沟，平均每亩开沟长度150米 | C59: 亩 | D59: 11310
A60: 四 | B60: 改良草原
A61: 4.1 | B61: 施肥 | C61: 吨 | D61: 400
A62: 4.2 | B62: 施肥费用（无人机施肥） | C62: 亩 | D62: 10000
A63: 4.3 | B63: 毒害草防治 | C63: 亩 | D63: 10000
A64: 4.4 | B64: 鼠害防治（灭鼠采用 C 型肉毒梭菌） | C64: 亩 | D64: 10000
A65: 4.5 | B65: 漫灌开沟（沟深为 10-40cm 之间），根据地势高低情况合理开沟，平均每亩开沟长度150米 | C65: 亩 | D65: 3000
A66: 4.6 | B66: 引洪渠（引洪渠上口宽 3 米、下口宽 1.2 米，深 0.8 米） | C66: m³ | D66: 4116 | G66: 引洪渠道长2.45KM
A67: 4.7 | B67: 拦洪坝，拦洪坝3处，就近取含卵石的砂石混合土筑土坝，坝高1.5米，上宽3.0米，下宽4.5 米，长12米。 | C67: m³ | D67: 202.5

Sheet 建 (hidden)
A1: 建筑工程分类分项工程量清单计价表
A2: =汇总!A2 -> 工程名称：轮台县2023年塔里木河干流生态综合治理项目
A3: =汇总!A3 -> 合同编号：
A4: 序号 | B4: 工程或费用名称 | C4: 单位 | D4: 数量 | E4: 单价 | F4: 合价 | G4: 备注
B5: 第一部分 建筑工程 | F5: =F6+F111 ->  | K5: =F6+F111 -> 
A6: 1 | B6: 灌溉排水工程 | F6: =F7+F24 ->  | I6: =H7-F5 ->  | J6: =SUM(J1:J158) -> 1261153646998
A7: 1.1 | B7: 斗渠工程 | C7: km | D7: 8.27 | F7: =SUM(F8:F23) ->  | H7: =SUM(H8:H143) -> 8293558.02 | I7: =SUM(I8:I143) ->  | J7: =SUM(J8:J143) -> 
A8: 1.1.1 | B8: 土方清基 | C8: m³ | D8: 8528.1 | E8: =#REF! ->  | F8: =E8*D8 ->  | G8: 2.55 | H8: =G8*D8 -> 21746.66 | I8: =H8-F8 ->  | J8: =F8 -> 
A9: 1.1.2 | B9: 土方开挖 | C9: m³ | D9: 11550 | E9: =#REF! ->  | F9: =E9*D9 ->  | G9: 2.86 | H9: =G9*D9 -> 33033 | I9: =H9-F9 ->  | J9: =F9 -> 
A10: 1.1.3 | B10: 土方回填（外运2km） | C10: m³ | D10: 19197.05 | E10: =#REF!+#REF! ->  | G10: 22.35 | H10: 429054.07
A11: 1.1.4 | B11: 砂砾石垫层 | C11: m³ | D11: 8612.83 | E11: =#REF! ->  | G11: 93.41 | H11: 804524.45
A12: 1.1.5 | B12: C30现浇渠道边坡板及底板（二级配，W6，F200，普通硅酸酸盐） | C12: m³ | D12: 1941.59 | E12: =#REF! ->  | G12: 666.77 | H12: 1294593.96
A13: 1.1.6 | B13: C30现浇渠道封顶板（二级配，W6，F200，普通硅酸酸盐） | C13: m³ | D13: 291.9 | E13: =#REF! ->  | G13: 666.77 | H13: 194630.16
A14: 1.1.7 | B14: C30现浇砼隔墙（30cm厚）（二级配，W6，F200，普通硅酸酸盐） | C14: m³ | D14: 5.6 | E14: =#REF! ->  | G14: 664.09 | H14: 3718.9
A15: 1.1.8 | B15: 模板制作与安装 | C15: m2 | D15: 1494.52 | E15: =#REF!/100 ->  | G15: 66.39 | H15: 99221.18
A16: 1.1.9 | B16: 一布一膜 | C16: m2 | D16: 25967.75 | E16: =#REF! ->  | G16: 15.55 | H16: 403798.51
A17: 1.1.10 | B17: 高压闭孔板 | C17: m³ | D17: 31.57 | E17: =4500 -> 4500 | F17: 142065 | G17: 4583.02 | H17: 144685.94 | I17: 2620.94 | J17: 142065
A18: 1.1.11 | B18: 聚氨酯 | C18: m³ | D18: 10.87 | E18: =23500 -> 23500 | F18: 255445 | G18: 22646.6 | H18: 246168.54 | I18: -9276.46 | J18: 255445
A19: 1.1.12 | B19: 砼拆旧 | C19: m³ | D19: 482.42 | E19: =#REF! ->  | G19: 79.34 | H19: 38275.2
A20: 1.1.13 | B20: 挖树根就近堆放（胸径10-20cm） | C20: 棵 | D20: 1830 | E20: 1.36 | F20: 2488.8 | G20: 1.36 | H20: 2488.8 | I20: 0 | J20: 2488.8
A21: 1.1.14 | B21: 挖树根就近堆放（胸径20-30cm） | C21: 棵 | D21: 1372 | E21: 2.35 | F21: 3224.2 | G21: 2.35 | H21: 3224.2 | I21: 0 | J21: 3224.2
A22: 1.1.15 | B22: 挖树根就近堆放（胸径30-40cm） | C22: 棵 | D22: 915 | E22: 2.85 | F22: 2607.75 | G22: 2.85 | H22: 2607.75 | I22: 0 | J22: 2607.75
A23: 1.1.16 | B23: 挖树根就近堆放（胸径40-50cm） | C23: 棵 | D23: 457 | E23: 3.46 | F23: 1581.22 | G23: 3.46 | H23: 1581.22 | I23: 0 | J23: 1581.22
A24: 1.2 | B24: 渠系建筑物 | C24: 座 | D24: =D25+D40+D55+D67+D79+D96 -> 94 | F24: =F25+F40+F55+F67+F79+F96 -> 
A25: 1.2.1 | B25: 节制单侧分水闸 | C25: 座 | D25: 20 | F25: =SUM(F26:F39) -> 
A26: 1.2.1.1 | B26: 挖方 Ⅱ类土 | C26: m3 | D26: 1559.58 | E26: =E9 ->  | F26: =E26*D26 ->  | G26: 2.94 | H26: =G26*D26 -> 4585.17 | I26: =H26-F26 ->  | J26: =F26 -> 
A27: 1.2.1.2 | B27: 填方 Ⅱ类土 | C27: m3 | D27: 593.5 | E27: =#REF! ->  | G27: 23 | H27: =G27*D27 -> 13650.5 | I27: =H27-F27 ->  | J27: =F27 -> 
A28: 1.2.1.3 | B28: C30现浇砼（闸墩） （二级配，W6，F200，普通硅酸酸盐） | C28: m3 | D28: 105.88 | E28: =#REF! ->  | G28: 609.82 | H28: 64567.74
A29: 1.2.1.4 | B29: C30现浇砼（底板） （二级配，W6，F200，普通硅酸酸盐） | C29: m3 | D29: 30.05 | E29: =#REF! ->  | G29: 689.57 | H29: 20721.58
A30: 1.2.1.5 | B30: C30现浇砼（隔墙） （二级配，W6，F200，普通硅酸酸盐） | C30: m3 | D30: 85.27 | E30: =#REF! ->  | G30: 664.09 | H30: 56626.95
A31: 1.2.1.6 | B31: C30钢筋砼（工作桥） （二级配，W6，F200，普通硅酸酸盐） | C31: m3 | D31: 1.64 | E31: =#REF! ->  | G31: 668.08 | H31: 1095.65
A32: 1.2.1.7 | B32: C30现浇砼（扭面） | C32: m3 | D32: 112.82 | E32: =E30 ->  | G32: 664.09 | H32: 74922.63
A33: 1.2.1.8 | B33: 砂砾石垫层 | C33: m3 | D33: 59.93 | E33: =E11 ->  | G33: 93.41 | H33: 5598.06
A34: 1.2.1.9 | B34: P651橡胶止水带 | C34: m | D34: 132 | E34: =#REF! ->  | G34: 86.56 | H34: 11425.92
A35: 1.2.1.10 | B35: 聚氨酯 | C35: m3 | D35: 0.05 | E35: =E18 -> 23500 | F35: 1175 | G35: 22646.6 | H35: 1132.33 | I35: -42.67 | J35: 1175
A36: 1.2.1.11 | B36: 高压闭孔板 | C36: m3 | D36: 0.74 | E36: =4500 -> 4500 | F36: 3330 | G36: 4583.02 | H36: 3391.43 | I36: 61.43 | J36: 3330
A37: 1.2.1.12 | B37: 防腐沥青涂抹二道 | C37: m2 | D37: 474.82 | E37: =#REF! ->  | G37: 23.09 | H37: 10963.59
A38: 1.2.1.13 | B38: 钢筋 | C38: t | D38: 0.28 | E38: =#REF! ->  | G38: 9139.46 | H38: 2559.05
A39: 1.2.1.14 | B39: 模板制作与安装 | C39: m2 | D39: 1630.78 | E39: =E15 ->  | G39: 66.39 | H39: 108267.48
A40: 1.2.2 | B40: 节制双侧分水闸（梯形） | C40: 座 | D40: 5 | F40: =SUM(F41:F54) -> 
A41: 1.2.2.1 | B41: 挖方 Ⅱ类土 | C41: m3 | D41: 436.17 | E41: =E26 ->  | G41: 2.94 | H41: =G41*D41 -> 1282.34 | I41: =H41-F41 ->  | J41: =F41 -> 
A42: 1.2.2.2 | B42: 填方 Ⅱ类土 | C42: m3 | D42: 167.13 | G42: 23 | H42: =G42*D42 -> 3843.99 | I42: =H42-F42 ->  | J42: =F42 -> 
A43: 1.2.2.3 | B43: C30现浇砼（闸墩） （二级配，W6，F200，普通硅酸酸盐） | C43: m3 | D43: 34.25 | G43: 609.82 | H43: 20886.34
A44: 1.2.2.4 | B44: C30现浇砼（底板） （二级配，W6，F200，普通硅酸酸盐） | C44: m3 | D44: 8.28 | G44: 689.57 | H44: 5709.64
A45: 1.2.2.5 | B45: C30现浇砼（隔墙） （二级配，W6，F200，普通硅酸酸盐） | C45: m3 | D45: 25.32 | G45: 664.09 | H45: 16814.76
A46: 1.2.2.6 | B46: C30钢筋砼（工作桥） （二级配，W6，F200，普通硅酸酸盐） | C46: m3 | D46: 0.58 | G46: 668.08 | H46: 387.49
A47: 1.2.2.7 | B47: C30现浇砼（扭面） | C47: m3 | D47: 30.11 | E47: =E30 ->  | G47: 664.09 | H47: 19995.75
A48: 1.2.2.8 | B48: 砂砾石垫层 | C48: m3 | D48: 16.48 | E48: =E33 ->  | G48: 93.41 | H48: 1539.4
A49: 1.2.2.9 | B49: P651橡胶止水带 | C49: m | D49: 38.2 | G49: 86.56 | H49: 3306.59
A50: 1.2.2.10 | B50: 聚氨酯 | C50: m3 | D50: 0.02 | E50: 23500 | F50: 470 | G50: 22646.6 | H50: 452.93 | I50: -17.07 | J50: 470
A51: 1.2.2.11 | B51: 高压闭孔板 | C51: m3 | D51: 0.21 | E51: 4500 | F51: 945 | G51: 4583.02 | H51: 962.43 | I51: 17.43 | J51: 945
A52: 1.2.2.12 | B52: 防腐沥青涂抹二道 | C52: m2 | D52: 115.54 | G52: 23.09 | H52: 2667.82
A53: 1.2.2.13 | B53: 钢筋 | C53: t | D53: 0.11 | G53: 9139.46 | H53: 1005.34
A54: 1.2.2.14 | B54: 模板制作与安装 | C54: m2 | D54: 441.37 | G54: 66.39 | H54: 29302.55
A55: 1.2.3 | B55: 单侧分水闸（梯形） | C55: 座 | D55: 41 | F55: =SUM(F56:F66) -> 
A56: 1.2.3.1 | B56: 挖方 Ⅱ类土 | C56: m3 | D56: 784.5 | E56: =E41 ->  | F56: =E56*D56 ->  | G56: 2.94 | H56: =G56*D56 -> 2306.43 | I56: =H56-F56 ->  | J56: =F56 -> 
A57: 1.2.3.2 | B57: 填方 Ⅱ类土 | C57: m3 | D57: 313.8 | E57: =#REF! ->  | F57: =E57*D57 ->  | G57: 23 | H57: =G57*D57 -> 7217.4 | I57: =H57-F57 ->  | J57: =F57 -> 
A58: 1.2.3.3 | B58: C30现浇砼（闸墩）（二级配，W6，F200，抗硫酸盐） | C58: m3 | D58: 38.05 | E58: =E43 ->  | G58: 609.82 | H58: 23203.65
A59: 1.2.3.4 | B59: C30现浇砼（底板）二级配，W6，F200，抗硫酸盐 | C59: m3 | D59: 74.7 | E59: =E44 ->  | G59: 689.57 | H59: 51510.88
A60: 1.2.3.5 | B60: C30现浇砼（隔墙）二级配，W6，F200，抗硫酸盐 | C60: m3 | D60: 10.01 | E60: =E45 ->  | G60: 664.09 | H60: 6647.54
A61: 1.2.3.6 | B61: 砂砾石垫层 | C61: m3 | D61: 46.1 | E61: =E48 ->  | G61: 93.41 | H61: 4306.2
A62: 1.2.3.7 | B62: P651橡胶止水带 | C62: m | D62: 101.2 | E62: =E49 ->  | G62: 86.56 | H62: 8759.87
A63: 1.2.3.8 | B63: 聚氨酯 | C63: m3 | D63: 0.04 | E63: =E50 -> 23500 | F63: 940 | G63: 22646.6 | H63: 905.86 | I63: -34.14 | J63: 940
A64: 1.2.3.9 | B64: 高压闭孔板 | C64: m3 | D64: 0.57 | E64: =E51 -> 4500 | F64: 2565 | G64: 4583.02 | H64: 2612.32 | I64: 47.32 | J64: 2565
A65: 1.2.3.10 | B65: 防腐沥青涂抹二道 | C65: m2 | D65: 846.13 | E65: =E52 ->  | G65: 23.09 | H65: 19537.14
A66: 1.2.3.11 | B66: 模板制作与安装 | C66: m2 | D66: 303.32 | E66: =E54 ->  | G66: 66.39 | H66: 20137.41
A67: 1.2.4 | B67: 双侧分水闸（梯形） | C67: 座 | D67: 3 | F67: =SUM(F68:F78) -> 
A68: 1.2.4.1 | B68: 挖方 Ⅱ类土 | C68: m3 | D68: 112.78 | E68: =E56 ->  | F68: =E68*D68 ->  | G68: 2.94 | H68: =G68*D68 -> 331.57 | I68: =H68-F68 ->  | J68: =F68 -> 
A69: 1.2.4.2 | B69: 填方 Ⅱ类土 | C69: m3 | D69: 45.11 | F69: =E69*D69 ->  | G69: 23 | H69: =G69*D69 -> 1037.53 | I69: =H69-F69 ->  | J69: =F69 -> 
A70: 1.2.4.3 | B70: C30现浇砼（闸墩）（二级配，W6，F200，抗硫酸盐） | C70: m3 | D70: 5.44 | G70: 609.82 | H70: 3317.42
A71: 1.2.4.4 | B71: C30现浇砼（底板）二级配，W6，F200，抗硫酸盐 | C71: m3 | D71: 10.77 | G71: 689.57 | H71: 7426.67
A72: 1.2.4.5 | B72: C30现浇砼（隔墙）二级配，W6，F200，抗硫酸盐 | C72: m3 | D72: 1.47 | G72: 664.09 | H72: 976.21
A73: 1.2.4.6 | B73: 砂砾石垫层 | C73: m3 | D73: 6.49 | G73: 93.41 | H73: 606.23
A74: 1.2.4.7 | B74: P651橡胶止水带 | C74: m | D74: 14.4 | G74: 86.56 | H74: 1246.46
A75: 1.2.4.8 | B75: 聚氨酯 | C75: m3 | D75: 0.01 | E75: 23500 | F75: 235 | G75: 22646.6 | H75: 226.47 | I75: -8.53 | J75: 235
A76: 1.2.4.9 | B76: 高压闭孔板 | C76: m3 | D76: 0.08 | E76: 4500 | F76: 360 | G76: 4583.02 | H76: 366.64 | I76: 6.64 | J76: 360
A77: 1.2.4.10 | B77: 防腐沥青涂抹二道 | C77: m2 | D77: 41.42 | G77: 23.09 | H77: 956.39
A78: 1.2.4.11 | B78: 模板制作与安装 | C78: m2 | D78: 115.56 | G78: 66.39 | H78: 7672.03
A79: 1.2.5 | B79: 农桥（梯形） | C79: 座 | D79: 23 | F79: =SUM(F80:F95) -> 
A80: 1.2.5.1 | B80: 挖方 Ⅱ类土 | C80: m3 | D80: 2435.13 | E80: =E68 ->  | F80: =E80*D80 ->  | G80: 2.94 | H80: =G80*D80 -> 7159.28 | I80: =H80-F80 ->  | J80: =F80 -> 
A81: 1.2.5.2 | B81: 填方 Ⅱ类土 | C81: m3 | D81: 974.05 | E81: =E69 ->  | F81: =E81*D81 ->  | G81: 23 | H81: =G81*D81 -> 22403.15 | I81: =H81-F81 ->  | J81: =F81 -> 
A82: 1.2.5.3 | B82: C30现浇砼（桥墩）（二级配，W6，F200，抗硫酸盐） | C82: m3 | D82: 245.64 | E82: =E70 ->  | G82: 609.82 | H82: 149796.18
A83: 1.2.5.4 | B83: C30现浇砼（底板）二级配，W6，F200，抗硫酸盐 | C83: m3 | D83: 36 | E83: =E71 ->  | G83: 689.57 | H83: 24824.52
A84: 1.2.5.5 | B84: C30现浇砼（隔墙）二级配，W6，F200，抗硫酸盐 | C84: m3 | D84: 58.39 | E84: =E72 ->  | G84: 664.09 | H84: 38776.22
A85: 1.2.5.6 | B85: C30现浇钢筋砼（台帽）二级配，W6，F200，抗硫酸盐 | C85: m3 | D85: 46.58 | E85: =#REF! ->  | G85: 668.08 | H85: 31119.17
A86: 1.2.5.7 | B86: C30现浇钢筋砼（桥面板）二级配，W6，F200，抗硫酸盐 | C86: m3 | D86: 69.8 | E86: =#REF! ->  | G86: 689.57 | H86: 48131.99
A87: 1.2.5.8 | B87: C30现浇砼（扭面）二级配，W6，F200，抗硫酸盐 | C87: m3 | D87: 140.32 | E87: =E72 ->  | G87: 664.09 | H87: 93185.11
A88: 1.2.5.9 | B88: C35细石铺装层二级配，W6，F200，抗硫酸盐（60厚） | C88: m2 | D88: 224.1 | E88: =E87/17 ->  | F88: =E88*D88 ->  | G88: 782.25 | H88: 175302.23
A89: 1.2.5.10 | B89: 砂砾石垫层 | C89: m3 | D89: 186.08 | E89: =E73 ->  | G89: 93.41 | H89: 17381.73
A90: 1.2.5.11 | B90: 钢筋 | C90: t | D90: 11.45 | E90: =E53 ->  | G90: 9139.46 | H90: 104646.82
A91: 1.2.5.12 | B91: 防腐沥青涂抹二道 | C91: m2 | D91: 738.8 | E91: =E77 ->  | G91: 23.09 | H91: 17058.89
A92: 1.2.5.13 | B92: 模板制作与安装 | C92: m2 | D92: 2216.34 | E92: =E78 ->  | G92: 66.39 | H92: 147142.81
A93: 1.2.5.14 | B93: 三毡四油 | C93: m2 | D93: 138 | E93: =#REF! ->  | G93: 173.01 | H93: 23875.38
A94: 1.2.5.15 | B94: 聚氨酯 | C94: m3 | D94: 0.04 | E94: =E75 -> 23500 | F94: 940 | G94: 22646.6 | H94: 905.86 | I94: -34.14 | J94: 940
A95: 1.2.5.16 | B95: 高压闭孔板 | C95: m3 | D95: 0.33 | E95: =E76 -> 4500 | F95: 1485 | G95: 4583.02 | H95: 1512.4 | I95: 27.4 | J95: 1485
A96: 1.2.6 | B96: 入户桥（梯形） | C96: 座 | D96: 2 | F96: =SUM(F97:F110) -> 
A97: 1.2.6.1 | B97: 挖方 Ⅱ类土 | C97: m³ | D97: 193.2 | E97: =E80 ->  | F97: =E97*D97 ->  | G97: 2.94 | H97: =G97*D97 -> 568.01 | I97: =H97-F97 ->  | J97: =F97 -> 
A98: 1.2.6.2 | B98: 填方 Ⅱ类土 | C98: m³ | D98: 77.28 | E98: =E81 ->  | F98: =E98*D98 ->  | G98: 23 | H98: =G98*D98 -> 1777.44 | I98: =H98-F98 ->  | J98: =F98 -> 
A99: 1.2.6.3 | B99: C30现浇砼（桥墩）（二级配，W6，F200，抗硫酸盐） | C99: m³ | D99: 14.24 | E99: =E82 ->  | G99: 609.82 | H99: 8683.84
A100: 1.2.6.4 | B100: C30现浇砼（底板）二级配，W6，F200，抗硫酸盐 | C100: m³ | D100: 1.92 | E100: =E83 ->  | G100: 689.57 | H100: 1323.97
A101: 1.2.6.5 | B101: C30现浇砼（隔墙）二级配，W6，F200，抗硫酸盐 | C101: m³ | D101: 4.76 | E101: =E84 ->  | G101: 664.09 | H101: 3161.07
A102: 1.2.6.6 | B102: C30现浇钢筋砼（桥面板）二级配，W6，F200，抗硫酸盐 | C102: m³ | D102: 2.18 | E102: =E86 ->  | G102: 689.57 | H102: 1503.26
A103: 1.2.6.7 | B103: C30现浇砼（扭面）二级配，W6，F200，抗硫酸盐 | C103: m³ | D103: 10.52 | E103: =E87 ->  | G103: 664.09 | H103: 6986.23
A104: 1.2.6.8 | B104: 砂砾石垫层 | C104: m³ | D104: 5.84 | E104: =E89 ->  | G104: 93.41 | H104: 545.51
A105: 1.2.6.9 | B105: 钢筋 | C105: t | D105: 0.24 | G105: 9139.46 | H105: 2193.47
A106: 1.2.6.10 | B106: 防腐沥青涂抹二道 | C106: ㎡ | D106: 65.21 | G106: 23.09 | H106: 1505.7
A107: 1.2.6.11 | B107: 模板制作与安装 | C107: ㎡ | D107: 161.96 | G107: 66.39 | H107: 10752.52
A108: 1.2.6.12 | B108: 三毡四油 | C108: m2 | D108: 6.4 | G108: 173.01 | H108: 1107.26
A109: 1.2.6.13 | B109: 聚氨酯 | C109: m3 | D109: 0.0032 | E109: 23500 | F109: 75.2 | G109: 22646.6 | H109: 72.47 | I109: -2.73 | J109: 75.2
A110: 1.2.6.14 | B110: 高压闭孔板 | C110: m3 | D110: 0.03 | E110: 4500 | F110: 135 | G110: 4583.02 | H110: 137.49 | I110: 2.49 | J110: 135
A111: 二 、 | B111: 田间道路工程 | F111: =F112+F117+F130 -> 
A112: 2.1 | B112: 田间道路工程 | C112: km | D112: 9.06 | F112: =SUM(F113:F116) -> 
A113: 2.1.1 | B113: 挖掘机挖土 | C113: m³ | D113: 4682.91 | E113: =#REF! ->  | F113: =E113*D113 ->  | G113: 2.25 | H113: =G113*D113 -> 10536.55 | I113: =H113-F113 ->  | J113: =F113 -> 
A114: 2.1.2 | B114: 推土机推土回填 | C114: m³ | D114: 8780.52 | E114: =#REF! ->  | F114: =E114*D114 ->  | G114: 6.51 | H114: =G114*D114 -> 57161.19 | I114: =H114-F114 -> 
A115: 2.1.3 | B115: 砂砾石路面(300厚) | C115: ㎡ | D115: 40967 | E115: =E104/2 ->  | G115: 43.82 | H115: 1795173.94
A116: 2.1.4 | B116: 无纺布 | C116: ㎡ | D116: 47932.02 | E116: 12 | F116: 575184.24 | G116: 9.25 | H116: 443371.19 | I116: -131813.05 | J116: 575184
A117: 2.2 | B117: 道路建筑物（灌渠穿道路涵管） | C117: 座 | D117: 10 | F117: =SUM(F118:F129) -> 
A118: 2.2.1 | B118: 挖方 Ⅱ类土 | C118: m³ | D118: 892.5 | E118: =E97 ->  | F118: =E118*D118 ->  | G118: 2.94 | H118: =G118*D118 -> 2623.95 | I118: =H118-F118 ->  | J118: =F118 -> 
A119: 2.2.2 | B119: 填方 Ⅱ类土 | C119: m³ | D119: 446.25 | E119: =E98 ->  | F119: =E119*D119 ->  | G119: 23 | H119: =G119*D119 -> 10263.75 | I119: =H119-F119 ->  | J119: =F119 -> 
A120: 2.2.3 | B120: C30现浇砼（桥墩）（二级配，W6，F200，抗硫酸盐） | C120: m³ | D120: 158.13 | E120: =E99 ->  | G120: 609.82 | H120: 96430.84
A121: 2.2.4 | B121: C30预制砼（面板）（二级配，W6，F200，抗硫酸盐） | C121: m³ | D121: 22.68 | E121: =E102 ->  | G121: 787.25 | H121: 17854.83
A122: 2.2.5 | B122: DN600预制砼管（C30） | C122: m³ | D122: 15.75 | E122: 850 | F122: 13387.5 | G122: 787.25 | H122: 12399.19 | I122: -988.31 | J122: 13388
A123: 2.2.6 | B123: 钢筋 | C123: T | D123: =934.29/1000 -> 0.93 | E123: =E105 ->  | G123: 9140 | H123: 8500.2
A124: 2.2.7 | B124: 热沥青麻袋 | C124: ㎡ | D124: 210 | E124: 66 | F124: 13860 | G124: 66.69 | H124: 14004.9 | I124: 144.9 | J124: 13860
A125: 2.2.8 | B125: 热沥青麻丝 | C125: m³ | D125: 0.32 | E125: 66 | F125: 21.12 | G125: 66.69 | H125: 21.34 | I125: 0.22 | J125: 21
A126: 2.2.9 | B126: 砂砾石 | C126: m³ | D126: 112.9 | E126: =E104 ->  | G126: 93.41 | H126: 10545.99
A127: 2.2.10 | B127: 高压闭孔板 | C127: m³ | D127: 2.63 | E127: =E110 -> 4500 | F127: 11835 | G127: 4583.02 | H127: 12053.34 | I127: 218.34 | J127: 11835
A128: 2.2.11 | B128: 聚氨酯密封膏 | C128: m³ | D128: 0.04 | E128: =E109 -> 23500 | F128: 940 | G128: 22646.6 | H128: 905.86 | I128: -34.14 | J128: 940
A129: 2.2.12 | B129: 模板制作与安装 | C129: ㎡ | D129: 382.51 | E129: =E107 ->  | G129: 66.39 | H129: 25394.84
A130: 2.3 | B130: 道路建筑物（排渠穿道路涵管） | C130: 座 | D130: 6 | F130: =SUM(F131:F143) -> 
A131: 2.3.1 | B131: 挖方 Ⅱ类土 | C131: m3 | D131: 2129.01 | E131: =E118 ->  | F131: =E131*D131 ->  | G131: 2.94 | H131: =G131*D131 -> 6259.29 | I131: =H131-F131 ->  | J131: =F131 -> 
A132: 2.3.2 | B132: 填方 Ⅱ类土 | C132: m3 | D132: 1703.21 | E132: =E119 ->  | F132: =E132*D132 ->  | G132: 23 | H132: =G132*D132 -> 39173.83 | I132: =H132-F132 ->  | J132: =F132 -> 
A133: 2.3.3 | B133: C30现浇砼（挡土墙）（二级配，W6，F200，抗硫酸盐） | C133: m3 | D133: 275.18 | E133: =E101 ->  | G133: 664.09 | H133: 182744.29
A134: 2.3.4 | B134: C30垫层（二级配，W6，F200，抗硫酸盐） | C134: m3 | D134: 90.99 | E134: =#REF! ->  | G134: 689.57 | H134: 62743.97
A135: 2.3.5 | B135: D1000预制砼管，C30钢筋砼（二级配，W6，F200，抗硫酸盐） | C135: m3 | D135: 12.3 | E135: =E122 -> 850 | F135: 10455 | G135: 787.25 | H135: 9683.18 | I135: -771.82 | J135: 10455
A136: 2.3.6 | B136: 钢筋 | C136: t | D136: 0.84 | E136: =E123 ->  | G136: 9139.46 | H136: 7677.15
A137: 2.3.7 | B137: 砂砾石垫层 | C137: m3 | D137: 303.58 | E137: =E126 ->  | G137: 93.41 | H137: 28357.41
A138: 2.3.8 | B138: 热沥青麻袋 | C138: m2 | D138: 113.94 | E138: =E124 -> 66 | F138: 7520.04 | G138: 66.69 | H138: 7598.66 | I138: 78.62 | J138: 7520.04
A139: 2.3.9 | B139: 热沥青麻丝 | C139: m2 | D139: 0.26 | E139: =E138 -> 66 | F139: 17.16 | G139: 66.69 | H139: 17.34 | I139: 0.18 | J139: 17.16
A140: 2.3.10 | B140: 聚氨酯 | C140: m3 | D140: 0.02 | E140: =E128 -> 23500 | F140: 470 | G140: 22646.6 | H140: 452.93 | I140: -17.07 | J140: 470
A141: 2.3.11 | B141: 高压闭孔板 | C141: m3 | D141: 0.66 | E141: =E127 -> 4500 | F141: 2970 | G141: 4583.02 | H141: 3024.79 | I141: 54.79 | J141: 2970
A142: 2.3.12 | B142: 模板加工 | C142: m2 | D142: 1117.79 | E142: =E129 ->  | G142: 66.39 | H142: 74210.08
A143: 2.3.13 | B143: 沥青防腐涂抹二道 | C143: m2 | D143: 1234.6 | E143: =E106 ->  | G143: 23.09 | H143: 28506.91
G149: 2.2489
G150: 6.5138
G151: 43.81704
G152: 9.2501
G154: 2.93544
G155: 23.0039
G156: 609.8186
G157: 787.2486
G159: 787.2486
G160: 9.13946
G161: 66.6879
G162: 66.6879
G163: 93.41
G164: 4583.02
G165: 22646.6
G166: 66.39
G168: 2.94
G169: 23
G170: 664.09
G171: 689.57
G172: 787.25
G173: 9139.46
G174: 93.41
G175: 66.69
G176: 66.69
G177: 22646.6
G178: 4583.02
G179: 66.39
G180: 23.09

Sheet 机电
A1: 机电设备（管材、管件）及安装工程清单计价表
A2: =汇总!A2 -> 工程名称：轮台县2023年塔里木河干流生态综合治理项目
A3: =[29]汇总!A3 -> 合同编号：
A4: 编号 | B4: 工程名称 | C4: 单位 | D4: 数量 | E4: 单价(元) | G4: 合计(万元)
E5: 设备费 | F5: 安装费 | G5: 设备费 | H5: 安装费
A6: 第二部分：机电设备及安装工程

Sheet 金
A1: 金属结构设备及安装工程清单计价表
A2: =汇总!A2 -> 工程名称：轮台县2023年塔里木河干流生态综合治理项目
A3: =汇总!A3 -> 合同编号： | B3: =汇总!B3 -> 0
A4: 编号 | B4: 项目编码 | C4: 名称及规格 | D4: 单位 | E4: 数量 | F4: 单价（元） | H4: 合价
F5: 设备费 | G5: 安装费 | H5: 设备费 | I5: 安装费
C6: 第三部分 ：金属结构设备及安装工程

Sheet 临时
A1: 临时工程项目清单计价表
A2: =汇总!A2 -> 工程名称：轮台县2023年塔里木河干流生态综合治理项目
A3: =汇总!A3 -> 合同编号：
A4: 序号 | B4: 工程或费用名称 | C4: 单位 | D4: 数量 | E4: 单价（元） | F4: 合价（元） | G4: 备注
B5: 第五部分 临时工程
A6: 5.1 | B6: 其他施工临时工程 | C6: 项 | D6: 1
A7: 5.2 | B7: 施工仓库等 | C7: 项 | D7: 1
A8: 5.3 | B8: 承包人临时房屋建筑和共用设施 | C8: 项 | D8: 1
A9: 5.4 | B9: 其他临时设施 | C9: 项 | D9: 1
A13: 注：施工单位可根据实际需要增减项目，投标人临时工程的费用包括完成本合同工程在工程施工全过程中的全部临时工程（包括施工仓库、生活用水、电，临时建筑，施工道路、导流、排水等）。由于投标人的疏忽，因施工需要实际所发生的总价项目虽投标人未在投标报价表中单独列项报价，但招标人视为其费用已包含在其他单价和合价中，不再另行支付，敬请投标人特别注意。

Sheet 措
A1: 措施项目清单计价表
A2: =汇总!A2 -> 工程名称：轮台县2023年塔里木河干流生态综合治理项目
A3: =汇总!A3 -> 合同编号： | B3: =汇总!B3 -> 0
A4: 序号 | B4: 工程项目名称 | C4: 金额(元) | D4: 备注
B5: 第六部分 措施项目 | D5: 总价承包
A6: 1 | B6: 水土保护措施费 | D6: 最终按实际发生的工作量由监理签证业主认定后结算。
A7: 2 | B7: 环境保护措施费 | D7: 由投标人自行计费报价
A8: 3 | B8: 安全、文明生产措施费+维稳措施费 | D8: 按现行文件规定执行
B9: 合价
A11: 1、没有填报的措施项目，但在实际工程施工过程中需要发生的，其费用视为已包含在工程量清单中其他措施项目的单价和合价中。 2、按照新疆水利厅《关于在我区水利水电施工企业计取安全生产费用的通知》新水办建管【2011】80号文的有关规定，投标人的安全生产费用必须保证项目人员的安全教育培训；安全设备、器材、防护品的购买、完善、改造和维护；安全检查、事故管理；危险源控危险品管理；职业卫生健康管理等安全生产管理所需的费用。 3、安全生产措施费及维稳措施费，按文件规定计列，不是总价承包，最终按实际发生的工作量由监理签证业主认定后结算。 4、水土保持措施包括土地平整、防尘网防护、洒水降尘、弃渣处理等，此项根据实际发生由业主、监理确认后支付。 5、环境保护措施包括垃圾收集站、垃圾桶、防噪用具、生活污水渗池、卫生防疫、环保宣传牌等，最终按实际发生的工作量由监理签证业主认定后结算

Sheet 其他
A1: 其他项目清单计价表
A2: =汇总!A2 -> 工程名称：轮台县2023年塔里木河干流生态综合治理项目
A3: =汇总!A3 -> 合同编号：
A4: 序号 | B4: 工程项目名称 | C4: 金额(元) | D4: 备注
A5: 七 | B5: 其他项目 | C5: =C6+C7+C8+C9 -> 30000
A6: 7.1 | B6: 备用金 | C6: 20000
A7: 7.2 | B7: 防疫费 | C7: 10000
B14: 合计 | C14: =C5 -> 30000
A16: 注：此部分费用由招标人掌握，为项目实施过程中可能发生的合同变更而预留的费用。
